bitfinex/quotes_ETHUSD_20240630
["timestamp","ask_amount","ask_price","bid_price","bid_amount"]
[1719729729740,0.2239556,3376.0,3375.9,1.06469561]
[1719729729944,0.2239556,3376.0,3375.9,1.92769561]
[1719729731112,0.2239556,3376.0,3375.9,1.06469561]
[1719729731312,0.2239556,3376.0,3375.9,0.55]
[1719729731547,0.2239556,3376.0,3375.9,3.55]
[1719729731738,0.2239556,3376.0,3375.9,0.60923227]
[1719729731944,0.2239556,3376.0,3375.9,3.60923227]
[1719729733529,0.2239556,3376.0,3375.9,4.47223227]
[1719729733713,0.2239556,3376.0,3375.9,5.1538455]
[1719729733911,0.2239556,3376.0,3375.9,4.23161323]
[1719729734247,0.2239556,3376.0,3375.9,1.23161323]
[1719729734450,0.2239556,3376.0,3375.9,0.55]
[1719729739934,0.2239556,3376.0,3375.6,3.0]
[1719729740256,0.2239556,3376.0,3375.7,0.55]
[1719729742940,0.2239556,3376.0,3375.5,0.55]
[1719729743143,0.2239556,3376.0,3375.5,1.31199]
[1719729744164,0.2239556,3376.0,3375.5,0.55]
[1719729744672,2.4193,3375.9,3375.5,0.55]
[1719729744829,0.863,3375.8,3375.5,0.55]
[1719729745029,0.863,3375.8,3375.3,0.55]
[1719729745030,1.05242583,3375.8,3375.3,0.55]
[1719729746743,0.18942583,3375.8,3375.3,0.55]
[1719729747087,0.18942583,3375.8,3375.3,1.32741]
[1719729749926,0.18942583,3375.8,3375.4,0.863]
[1719729750156,0.18942583,3375.8,3375.5,0.55]
[1719729750932,0.18942583,3375.8,3375.5,3.55]
[1719729751240,0.18942583,3375.8,3375.5,0.55]
[1719729769370,0.18942583,3375.8,3375.6,0.863]
[1719729769570,0.028,3376.0,3375.7,0.55]
[1719729772475,2.3023,3375.9,3375.7,0.55]
[1719729772682,0.028,3376.0,3375.7,0.55]
[1719729775698,0.028,3376.0,3375.6,0.55]
[1719729775911,0.028,3376.0,3375.6,0.9968341]
[1719729777991,0.028,3376.0,3375.6,1.8598341]
[1719729778592,0.028,3376.0,3375.8,0.863]
[1719729778791,0.028,3376.0,3375.9,0.55]
[1719729778991,0.028,3376.0,3375.9,4.32532724]
[1719729783328,0.028,3376.0,3375.9,1.32532724]
[1719729784125,0.2173837,3376.0,3375.9,1.32532724]
[1719729784894,0.2173837,3376.0,3375.9,0.55]
[1719729785289,0.2173837,3376.0,3375.8,0.55]
[1719729789722,0.3653837,3376.0,3375.8,0.55]
[1719729790028,0.3653837,3376.0,3375.9,0.863]
[1719729790209,0.3653837,3376.0,3375.9,4.7956]
[1719729790811,0.3653837,3376.0,3375.9,3.9326]
[1719729791602,0.3373837,3376.0,3375.9,3.9326]
[1719729796349,0.3373837,3376.0,3375.9,3.9026]
[1719729797299,0.3373837,3376.0,3375.9,3.96183484]
[1719729797526,0.31316512,3376.0,3375.9,3.96183484]
[1719729798848,0.31316512,3376.0,3375.9,3.9026]
[1719729801141,0.31316512,3376.0,3375.9,3.8746]
[1719729806033,0.31316512,3376.0,3375.9,5.061259]
[1719729816557,0.31316512,3376.0,3375.9,5.12049107]
[1719729817579,0.31316512,3376.0,3375.9,7.58549107]
[1719729818258,0.31316512,3376.0,3375.9,8.44849107]
[1719729819682,0.31316512,3376.0,3375.9,8.389259]
[1719729827552,0.33767702,3376.0,3375.9,8.389259]
[1719729827753,0.1725119,3376.0,3375.9,8.389259]
[1719729839079,0.1725119,3376.0,3375.9,7.526259]
[1719729839284,0.1725119,3376.0,3375.9,8.389259]
[1719729847375,0.1725119,3376.0,3375.9,5.061259]
[1719729847576,0.36147258,3376.0,3375.9,2.924259]
[1719729847883,0.36147258,3376.0,3375.9,5.924259]
[1719729848276,0.1725119,3376.0,3375.9,5.924259]
[1719729848481,0.36147258,3376.0,3375.9,5.924259]
[1719729848688,0.1725119,3376.0,3375.9,5.924259]
[1719729848898,0.36147082,3376.0,3375.9,5.924259]
[1719729849197,0.1725119,3376.0,3375.9,5.924259]
[1719729849504,0.1725119,3376.0,3375.9,6.95565466]
[1719729849680,0.36147082,3376.0,3375.9,6.95565466]
[1719729849867,0.1725119,3376.0,3375.9,6.95565466]
[1719729850068,0.1725119,3376.0,3375.9,5.924259]
[1719729850272,0.0245119,3376.0,3375.9,5.924259]
[1719729850579,0.21347082,3376.0,3375.9,5.924259]
[1719729851205,0.0245119,3376.0,3375.9,6.95565439]
[1719729851366,0.0245119,3376.0,3375.9,5.924259]
[1719729851570,0.0245119,3376.0,3375.9,6.95565386]
[1719729852708,0.0245119,3376.0,3375.9,5.924259]
[1719729853204,2.3274119,3376.5,3375.9,5.924259]
[1719729853405,2.3274119,3376.5,3376.4,0.863]
[1719729853605,2.3274119,3376.5,3376.4,1.413]
[1719729853810,2.51637082,3376.5,3376.4,1.413]
[1719729858685,0.18895892,3376.5,3376.4,1.413]
[1719729859404,0.18896243,3376.5,3376.4,1.413]
[1719729859608,0.18896243,3376.5,3376.4,0.55]
[1719729859807,2.3329,3376.7,3376.4,0.863]
[1719729859976,0.18896243,3376.5,3376.1,0.55]
[1719729860308,2.3329,3376.7,3376.4,0.863]
[1719729860509,2.3329,3376.7,3376.6,0.863]
[1719729861006,2.3329,3376.7,3376.6,1.413]
[1719729861194,2.3329,3376.7,3376.6,2.599459]
[1719729861395,2.3329,3376.7,3376.6,5.599459]
[1719729864302,2.3329,3376.7,3376.6,6.1594049]
[1719729867214,7.33,3377.1,3376.6,6.1594049]
[1719729867411,7.33,3377.1,3376.8,0.863]
[1719729867578,7.33,3377.1,3376.9,0.55]
[1719729869880,19.63,3377.6,3376.9,0.55]
[1719729870086,2.3352,3377.5,3376.9,0.55]
[1719729871916,2.3352,3377.5,3376.9,1.413]
[1719729872917,2.3352,3377.5,3376.9,0.55]
[1719729873116,2.3352,3377.5,3376.9,0.863]
[1719729874119,0.18899052,3377.4,3376.9,0.863]
[1719729874320,2.3352,3377.3,3376.9,0.863]
[1719729874725,0.18899052,3377.2,3376.9,0.863]
[1719729875093,2.3352,3377.3,3376.9,0.863]
[1719729875293,0.18899052,3377.2,3376.9,0.863]
[1719729875797,2.3352,3377.3,3376.9,0.863]
[1719729876016,0.18899052,3377.1,3376.9,0.863]
[1719729876229,2.3352,3377.3,3376.9,0.863]
[1719729876445,0.18899052,3377.0,3376.9,0.863]
[1719729876627,2.3352,3377.3,3376.9,1.413]
[1719729877129,0.18899052,3377.2,3376.9,1.413]
[1719729877508,2.3352,3377.3,3376.9,1.413]
[1719729877693,0.18900629,3377.1,3376.9,1.413]
[1719729877897,2.3352,3377.3,3376.9,1.413]
[1719729878097,0.18900629,3377.2,3376.9,1.413]
[1719729878597,2.3352,3377.3,3376.9,1.413]
[1719729878798,0.18900629,3377.1,3376.9,1.413]
[1719729878997,2.3352,3377.3,3376.9,1.413]
[1719729879222,0.18900629,3377.0,3376.9,1.413]
[1719729879421,2.3352,3377.3,3376.9,1.413]
[1719729879640,0.18900629,3377.0,3376.9,1.413]
[1719729880022,2.3352,3377.3,3376.9,1.413]
[1719729880329,2.3352,3377.3,3376.9,1.9729459]
[1719729880632,0.18900629,3377.2,3377.0,0.55]
[1719729881000,2.3352,3377.3,3377.0,0.55]
[1719729881410,0.18900279,3377.2,3377.0,0.55]
[1719729881822,2.3352,3377.3,3377.0,0.55]
[1719729882034,0.18900279,3377.1,3377.0,0.55]
[1719729882201,2.3352,3377.3,3377.0,0.55]
[1719729882401,0.18900279,3377.1,3377.0,0.55]
[1719729882841,2.3352,3377.3,3377.0,0.55]
[1719729883040,0.18900279,3377.1,3377.0,0.55]
[1719729883247,2.3352,3377.3,3377.0,0.55]
[1719729883452,0.18900279,3377.1,3377.0,0.55]
[1719729883956,2.3352,3377.3,3377.0,0.55]
[1719729884137,0.18900279,3377.1,3377.0,0.55]
[1719729884330,2.3352,3377.3,3376.8,1.413]
[1719729884515,0.18900279,3377.1,3376.8,1.413]
[1719729884719,2.3352,3377.3,3376.8,1.413]
[1719729884947,0.18900279,3377.0,3376.8,1.413]
[1719729885254,2.3352,3377.3,3376.8,1.413]
[1719729885456,2.3352,3377.3,3376.8,2.00894749]
[1719729885640,0.18900279,3377.2,3376.8,1.413]
[1719729885841,0.18900279,3377.2,3376.8,0.55]
[1719729886046,2.3352,3377.3,3376.9,0.863]
[1719729886243,0.18900279,3377.1,3377.0,0.55]
[1719729886432,2.3352,3377.3,3377.0,0.55]
[1719729886637,0.18900279,3377.1,3377.0,0.55]
[1719729886820,2.3352,3377.3,3377.0,0.55]
[1719729887020,0.18900279,3377.1,3377.0,0.55]
[1719729887555,2.3352,3377.3,3377.0,0.55]
[1719729887758,0.18900279,3377.1,3377.0,0.55]
[1719729887959,2.3352,3377.3,3377.0,0.55]
[1719729888257,0.18900279,3377.1,3377.0,0.55]
[1719729888456,2.3352,3377.3,3377.0,0.55]
[1719729888642,0.18900279,3377.1,3377.0,0.55]
[1719729888848,2.4323,3377.5,3377.0,0.55]
[1719729889037,0.18900279,3377.1,3377.0,0.55]
[1719729889241,2.4323,3377.5,3377.0,0.55]
[1719729889439,0.18899752,3377.1,3377.0,0.55]
[1719729889639,2.4323,3377.5,3377.0,0.9913]
[1719729889835,2.4323,3377.5,3377.0,0.55]
[1719729889836,0.18898875,3377.1,3377.0,0.55]
[1719729890357,2.4323,3377.1,3376.8,1.413]
[1719729890662,2.6212905,3377.1,3376.8,1.413]
[1719729893450,0.1889905,3377.1,3376.8,1.413]
[1719729893862,2.4323,3377.3,3376.8,1.9729459]
[1719729894039,0.1889905,3377.0,3376.8,1.9729459]
[1719729894241,2.4323,3377.3,3376.8,1.9729459]
[1719729894436,0.1889905,3376.9,3376.8,0.55]
[1719729894641,2.4323,3377.3,3376.8,0.55]
[1719729894837,0.1889905,3376.9,3376.8,0.55]
[1719729895324,2.4323,3377.3,3376.8,0.55]
[1719729895528,0.1889905,3376.9,3376.8,0.55]
[1719729895729,2.4323,3377.3,3376.8,0.55]
[1719729895927,0.1889905,3376.9,3376.8,0.55]
[1719729896538,2.4323,3377.3,3376.8,0.55]
[1719729896744,0.1889905,3376.9,3376.8,0.55]
[1719729896943,2.4323,3377.3,3376.8,0.55]
[1719729897159,2.6212905,3376.9,3376.8,0.55]
[1719729897371,2.4323,3376.9,3376.8,0.55]
[1719729897530,0.1889905,3376.9,3376.8,0.863]
[1719729897876,2.4323,3377.2,3376.8,1.413]
[1719729898076,0.1889905,3376.9,3376.8,0.863]
[1719729898285,0.1889905,3376.9,3376.8,1.413]
[1719729898427,2.4323,3377.2,3376.8,1.413]
[1719729898929,0.1889905,3377.1,3376.8,1.413]
[1719729901249,2.4323,3377.0,3376.8,0.55]
[1719729901765,2.4323,3376.8,3376.6,4.186459]
[1719729901938,2.4323,3376.8,3376.7,3.0]
[1719729902153,0.18896067,3376.7,3376.6,1.186459]
[1719729902353,2.4323,3376.8,3375.7,2.4881]
[1719729902554,2.4323,3376.8,3375.9,0.863]
[1719729902555,0.45108674,3376.7,3375.9,0.863]
[1719729902890,0.45108674,3376.7,3376.3,1.186672]
[1719729903185,0.18896067,3376.7,3376.3,1.186672]
[1719729903385,2.4323,3376.8,3376.3,1.186672]
[1719729903532,0.18887122,3376.6,3376.3,1.186672]
[1719729903731,0.18887122,3376.6,3375.1,0.62117298]
[1719729903732,2.2839,3376.5,3375.5,0.863]
[1719729904004,2.2839,3376.3,3375.5,0.863]
[1719729904285,2.2839,3376.3,3375.9,1.186672]
[1719729904445,2.2839,3376.1,3375.4,0.863]
[1719729905067,0.18881156,3376.0,3375.4,0.863]
[1719729906235,0.18881156,3376.0,3375.5,0.55]
[1719729907899,0.18881156,3376.0,3375.4,1.413]
[1719729908642,0.18881156,3376.0,3375.6,0.863]
[1719729910040,0.18881156,3376.0,3375.4,0.55]
[1719729910304,0.18881156,3376.0,3375.4,1.413]
[1719729911872,2.2839,3375.9,3375.4,1.413]
[1719729912294,0.18855182,3375.8,3375.4,1.413]
[1719729914791,0.18855182,3375.8,3375.4,0.863]
[1719729914991,0.18855182,3375.8,3375.2,1.186831]
[1719729915345,0.18855182,3375.8,3375.2,2.049831]
[1719729918643,0.18855182,3375.8,3375.2,1.186831]
[1719729918976,0.18855182,3375.8,3375.2,2.049831]
[1719729921071,0.18855182,3375.8,3375.2,2.049831]
[1719729921447,2.2839,3375.7,3375.2,1.186831]
[1719729921979,0.18850269,3375.6,3375.2,1.186831]
[1719729931916,0.18850269,3375.6,3375.3,1.413]
[1719729932221,0.21715051,3375.5,3375.3,1.413]
[1719729932394,0.21715051,3375.5,3375.4,0.4905831]
[1719729932717,9.6112,3376.0,3375.4,1.09983391]
[1719729932901,0.21715051,3375.5,3375.4,1.09983391]
[1719729933096,7.33,3376.0,3375.4,4.96283391]
[1719729933297,0.21716281,3375.5,3375.4,4.09983391]
[1719729933498,7.33,3376.0,3375.4,4.96283391]
[1719729933715,0.21713999,3375.5,3375.4,4.09983391]
[1719729933918,7.33,3376.0,3375.5,0.75926649]
[1719729934216,0.21713999,3375.9,3375.7,0.863]
[1719729934417,0.21713999,3375.9,3375.8,0.55]
[1719729934984,0.21713999,3375.9,3375.8,3.55]
[1719729935309,0.21713999,3375.9,3375.8,0.55]
[1719729938918,2.2812,3376.2,3375.8,0.55]
[1719729939119,0.21718562,3375.9,3375.8,0.55]
[1719729939353,0.21718562,3375.9,3375.8,1.279121]
[1719729939719,2.2812,3376.2,3375.8,1.279121]
[1719729939934,0.21718562,3376.1,3375.8,1.279121]
[1719729943433,0.21718562,3376.1,3375.8,0.55]
[1719729945551,0.21718562,3376.1,3375.6,3.0]
[1719729945755,0.21718562,3376.1,3375.4,0.863]
[1719729945922,0.21718562,3376.1,3375.2,5.049831]
[1719729945923,2.2996,3375.9,3375.2,5.049831]
[1719729946117,0.21724529,3375.8,3375.2,5.049831]
[1719729946839,0.21724529,3375.8,3375.2,4.186831]
[1719729947049,0.21724529,3375.8,3375.3,3.0]
[1719729947377,0.21724529,3375.8,3375.2,1.186831]
[1719729948428,0.21724529,3375.8,3375.2,2.049831]
[1719729948753,0.21724529,3375.8,3375.2,5.4941641]
[1719729948953,0.21724529,3375.8,3375.4,0.863]
[1719729949158,0.21724529,3375.8,3375.5,0.55]
[1719729949372,2.2996,3376.1,3375.5,0.55]
[1719729949559,0.21717859,3376.0,3375.5,0.55]
[1719729950649,0.863,3375.9,3375.5,0.55]
[1719729950845,0.863,3375.9,3375.4,0.55]
[1719729951038,0.863,3375.9,3375.3,1.03876641]
[1719729951233,0.21717859,3375.8,3375.3,4.03876641]
[1719729952264,0.21717859,3375.8,3375.4,0.80634305]
[1719729952452,0.21717859,3375.8,3375.5,0.55]
[1719729953335,0.21717859,3375.8,3375.4,0.55]
[1719729962281,2.2996,3375.7,3375.4,0.55]
[1719729962654,0.21719439,3375.6,3375.3,0.55]
[1719729964483,0.21719439,3375.6,3375.3,3.55]
[1719729964686,0.21719439,3375.6,3375.3,0.55]
[1719729964914,0.863,3375.9,3375.3,0.55]
[1719729965121,0.21719439,3375.5,3375.3,1.08948641]
[1719729965435,0.21719439,3375.4,3375.3,3.55]
[1719729965617,0.21719439,3375.4,3375.3,1.3236831]
[1719729965822,0.863,3375.9,3375.3,3.55]
[1719729965989,0.21719439,3375.4,3375.3,0.55]
[1719729966185,0.863,3375.9,3375.3,0.55]
[1719729966391,0.21719439,3375.8,3375.4,0.4736831]
[1719729966619,0.21719439,3375.8,3375.5,0.55]
[1719729967234,0.21719439,3375.8,3375.3,0.55]
[1719729967448,0.21719439,3375.8,3375.3,1.1099831]
[1719729968184,0.21719439,3375.8,3375.3,4.16923241]
[1719729968384,7.33,3376.0,3375.3,4.1099831]
[1719729968606,0.21719792,3375.9,3375.3,4.1099831]
[1719729968810,0.21719792,3375.9,3375.4,0.77438141]
[1719729968987,0.21719792,3375.9,3375.5,0.55]
[1719729969592,0.21719792,3375.9,3375.5,0.60924421]
[1719729969795,0.21719792,3375.9,3375.6,2.447]
[1719729969988,0.21719792,3375.9,3375.7,0.55]
[1719729970206,0.21719792,3375.9,3375.7,3.55]
[1719729971398,0.863,3376.2,3375.7,3.52]
[1719729971617,0.21717684,3375.8,3375.7,3.52]
[1719729971856,0.148,3375.9,3375.7,3.52]
[1719729972023,0.21717684,3375.8,3375.7,4.19413814]
[1719729972227,0.21717684,3375.8,3375.7,4.25338134]
[1719729975030,0.21717684,3375.8,3375.7,6.70038134]
[1719729975423,0.21717684,3375.8,3375.7,6.64113814]
[1719729975827,0.148,3375.9,3375.7,6.64113814]
[1719729976028,0.148,3375.9,3375.8,1.61341381]
[1719729976235,0.148,3375.9,3375.8,4.61041381]
[1719729976428,0.148,3375.9,3375.8,7.61041381]
[1719729979282,0.36537518,3375.9,3375.8,7.61041381]
[1719729979493,0.148,3375.9,3375.8,7.61041381]
[1719729979933,0.36537518,3375.9,3375.8,7.61041381]
[1719729987982,0.36537518,3375.9,3375.8,6.74741381]
[1719729988148,0.36537518,3375.9,3375.8,7.61041381]
[1719729991278,0.36537518,3375.9,3375.8,4.30041381]
[1719729991469,0.36537518,3375.9,3375.8,5.16341381]
[1719729991851,0.36537518,3375.9,3375.8,2.16341381]
[1719729995771,0.36537518,3375.9,3375.8,1.30041381]
[1719729995983,0.36537518,3375.9,3375.8,2.16341381]
[1719729996167,0.36537518,3375.9,3375.8,1.413]
[1719730000796,0.36537518,3375.9,3375.8,0.55]
[1719730000968,0.36537518,3375.9,3375.8,0.863]
[1719730001163,0.36537518,3375.9,3375.8,1.413]
[1719730005316,0.36537518,3375.9,3375.8,1.8543]
[1719730008935,0.36537518,3375.9,3375.8,0.9913]
[1719730009231,0.36537518,3375.9,3375.8,1.413]
[1719730011502,0.36537518,3375.9,3375.8,4.413]
[1719730014842,0.36537518,3375.9,3375.8,1.413]
[1719730015246,0.21021531,3375.9,3375.8,1.413]
[1719730015553,1.13425011,3376.3,3375.8,1.413]
[1719730015753,1.13425011,3376.3,3375.9,0.55]
[1719730016418,1.13425011,3376.3,3376.0,1.186625]
[1719730016617,1.13425011,3376.3,3376.1,0.55]
[1719730018623,2.267,3376.5,3376.0,1.186625]
[1719730018822,2.267,3376.3,3376.0,1.186625]
[1719730022849,2.3695,3376.1,3376.0,1.186625]
[1719730023633,2.57968021,3376.1,3376.0,1.186625]
[1719730033715,0.21018021,3376.1,3376.0,1.186625]
[1719730033878,3.2325,3376.4,3376.0,1.186625]
[1719730034076,0.21012231,3376.1,3376.0,1.186625]
[1719730034401,3.2325,3376.4,3376.0,1.186625]
[1719730034575,0.21012231,3376.1,3376.0,1.186625]
[1719730034783,3.2325,3376.4,3376.0,1.186625]
[1719730035287,0.21012231,3376.3,3376.0,1.186625]
[1719730035501,9.6995,3376.7,3376.1,0.55]
[1719730035702,0.21013811,3376.2,3376.1,0.55]
[1719730035868,9.6995,3376.7,3376.1,0.55]
[1719730036204,0.21013811,3376.6,3376.1,0.55]
[1719730037419,0.21013811,3376.6,3376.1,1.3416425]
[1719730037581,0.21013811,3376.6,3376.1,4.3416425]
[1719730043712,0.21013811,3376.6,3376.2,2.3713]
[1719730043899,0.21013811,3376.6,3376.2,5.3713]
[1719730046086,0.863,3376.8,3376.2,5.3713]
[1719730046434,0.863,3376.8,3376.2,6.24755675]
[1719730046435,0.21019426,3376.7,3376.2,6.24755675]
[1719730046725,0.21019426,3376.7,3376.2,5.3713]
[1719730051787,0.21019426,3376.7,3376.3,0.55]
[1719730052117,0.863,3376.9,3376.3,3.55]
[1719730052286,0.21019076,3376.6,3376.3,3.55]
[1719730052488,8.193,3377.0,3376.4,0.59213]
[1719730052681,0.21019425,3376.9,3376.5,0.55]
[1719730053312,0.21019425,3376.9,3376.5,1.201343]
[1719730055314,0.21019425,3376.9,3376.5,0.55]
[1719730055514,0.21019425,3376.9,3376.4,0.55]
[1719730079020,2.64239425,3376.9,3376.4,0.55]
[1719730088657,0.21019425,3376.9,3376.4,0.55]
[1719730090324,0.21019425,3376.9,3376.4,1.14213]
[1719730091636,0.21019425,3376.9,3376.5,2.3936]
[1719730091969,0.21014862,3376.8,3376.5,5.3936]
[1719730092219,8.15319425,3377.0,3376.5,5.3936]
[1719730092380,0.20314215,3376.7,3376.5,5.3936]
[1719730092884,8.15319425,3377.0,3376.5,5.3936]
[1719730093029,0.20314215,3376.6,3376.5,5.3936]
[1719730093228,8.15319425,3377.0,3376.5,5.9436]
[1719730093451,0.20314215,3376.6,3376.5,5.3936]
[1719730093628,0.863,3377.0,3376.5,5.9436]
[1719730093877,0.20314215,3376.6,3376.5,5.9436]
[1719730094078,0.20314215,3376.6,3376.5,6.53796]
[1719730094375,0.20315795,3376.6,3376.5,6.53796]
[1719730094586,3.2962,3377.1,3376.5,6.53796]
[1719730094744,0.20315795,3376.6,3376.5,5.9436]
[1719730095071,7.29019425,3377.4,3376.5,5.9436]
[1719730095072,0.863,3377.2,3376.5,5.9436]
[1719730095282,0.20315795,3376.6,3376.5,5.9436]
[1719730095465,0.20315795,3376.6,3376.5,6.53796]
[1719730095629,0.863,3377.2,3376.5,6.53796]
[1719730095825,0.863,3377.2,3376.6,0.55]
[1719730096047,0.863,3377.2,3376.6,3.55]
[1719730096879,0.863,3377.2,3376.6,0.55]
[1719730097059,0.863,3377.2,3376.3,2.3225]
[1719730097060,0.863,3377.0,3376.7,3.0]
[1719730097271,0.863,3377.0,3376.8,0.55]
[1719730097471,0.863,3377.0,3376.4,3.55]
[1719730097884,2.2938,3377.3,3376.4,3.55]
[1719730098085,0.863,3377.1,3376.4,3.55]
[1719730098589,4.48219943,3377.3,3376.4,3.55]
[1719730098762,0.863,3377.1,3376.4,3.55]
[1719730098958,2.2938,3377.3,3376.4,3.55]
[1719730099194,7.29019425,3377.4,3376.6,2.3225]
[1719730099416,0.20315972,3377.2,3376.7,2.8725]
[1719730099556,0.20315972,3377.2,3376.9,2.3225]
[1719730099755,7.29019425,3377.4,3377.0,1.13725]
[1719730099950,0.863,3377.7,3377.0,4.13725]
[1719730099951,0.19640709,3377.1,3377.0,4.13725]
[1719730100271,8.15319425,3377.7,3377.0,3.55]
[1719730100795,0.19644744,3377.6,3377.0,3.55]
[1719730100978,1.26079161,3377.6,3377.0,3.55]
[1719730103772,0.863,3377.5,3377.0,3.55]
[1719730103973,1.05947726,3377.5,3377.0,3.55]
[1719730107772,0.19647726,3377.5,3377.1,2.3077]
[1719730107974,7.29019425,3377.7,3377.5,2.3077]
[1719730108201,7.29019425,3377.7,3377.6,0.55]
[1719730108681,7.29019425,3377.7,3377.6,2.3077]
[1719730108883,7.29019425,3377.7,3377.6,2.8577]
[1719730109202,7.29019425,3377.7,3377.6,6.49847]
[1719730111291,12.4180615,3378.1,3377.6,6.49847]
[1719730111292,0.1180615,3378.1,3377.6,6.49847]
[1719730111594,0.1180615,3378.1,3377.7,3.55]
[1719730114354,0.18345679,3378.0,3377.7,3.55]
[1719730114556,0.18345679,3378.0,3377.7,0.55]
[1719730114706,0.18345679,3378.0,3377.6,0.55]
[1719730114911,0.18345679,3378.0,3377.6,1.16707]
[1719730118035,0.18345679,3378.0,3377.5,3.0]
[1719730118236,0.18345679,3378.0,3377.6,0.55]
[1719730118410,0.18345679,3378.0,3377.6,1.186155]
[1719730128883,0.18345679,3378.0,3377.7,2.4898]
[1719730129128,0.18345679,3378.0,3377.7,5.4898]
[1719730130498,0.18345679,3378.0,3377.8,0.55]
[1719730132982,7.76986926,3378.3,3377.8,0.55]
[1719730133225,0.17757032,3377.9,3377.8,0.55]
[1719730133529,7.76986926,3378.3,3377.7,0.55]
[1719730133702,0.17757032,3377.9,3377.7,1.3038955]
[1719730133900,7.76986926,3378.3,3377.7,0.55]
[1719730134417,0.17757032,3378.2,3377.7,0.55]
[1719730157740,0.17757032,3378.2,3377.8,2.3903]
[1719730157968,0.17757032,3378.2,3377.8,5.3903]
[1719730158135,6.90686926,3378.3,3377.9,2.3903]
[1719730158353,0.17757742,3378.1,3377.9,5.3903]
[1719730158547,6.90686926,3378.3,3377.9,5.3903]
[1719730158746,0.17757742,3378.0,3377.9,2.3903]
[1719730158973,6.90686926,3378.3,3377.9,2.3903]
[1719730159579,0.17758451,3378.2,3377.9,2.3903]
[1719730159938,6.90686926,3378.3,3377.9,2.3903]
[1719730160137,0.1775916,3378.1,3377.9,2.3903]
[1719730160365,6.90686926,3378.3,3377.9,2.3903]
[1719730160549,0.1775916,3378.0,3377.9,2.3903]
[1719730160763,6.90686926,3378.3,3377.9,2.3903]
[1719730160961,0.17758983,3378.0,3377.9,2.3903]
[1719730161164,6.90686926,3378.3,3377.9,2.3903]
[1719730161381,0.17758983,3378.0,3377.9,2.3903]
[1719730163756,0.177604,3378.0,3377.9,2.3903]
[1719730163943,6.90686926,3378.3,3377.9,2.3903]
[1719730164144,0.17759868,3378.0,3377.9,2.3903]
[1719730164346,6.90686926,3378.3,3377.9,2.3903]
[1719730164545,0.17759868,3378.0,3377.9,2.3903]
[1719730164753,6.90686926,3378.3,3377.9,2.3903]
[1719730164985,0.17759868,3378.0,3377.9,2.3903]
[1719730165190,0.863,3378.5,3377.9,2.3903]
[1719730165351,0.17759868,3378.0,3377.9,2.3903]
[1719730165890,0.863,3378.5,3377.9,2.3903]
[1719730166067,0.17759868,3378.0,3377.9,2.3903]
[1719730166272,0.863,3378.5,3377.9,2.3903]
[1719730166605,0.17759868,3378.0,3377.9,2.3903]
[1719730166755,0.863,3378.5,3377.9,2.3903]
[1719730166960,0.17759691,3378.4,3377.9,2.3903]
[1719730172170,6.90686926,3378.7,3378.1,2.3373]
[1719730172373,7.76986926,3378.7,3378.1,5.3373]
[1719730172599,0.17759514,3378.6,3378.1,5.3373]
[1719730172801,0.17759514,3378.6,3378.1,2.3373]
[1719730184144,2.58549514,3378.6,3377.8,5.4349]
[1719730184346,3.46193994,3378.6,3377.9,0.55]
[1719730184512,0.863,3378.5,3377.9,0.55]
[1719730184711,1.04061996,3378.5,3377.9,0.55]
[1719730194157,3.44851996,3378.5,3377.9,0.55]
[1719730195038,0.17761996,3378.5,3377.9,0.55]
[1719730200865,3.2709,3378.4,3377.9,0.55]
[1719730201254,0.17760399,3378.3,3377.7,3.55]
[1719730211027,0.17760399,3378.3,3377.6,1.186155]
[1719730211028,0.863,3378.0,3377.6,1.186155]
[1719730211228,0.863,3378.0,3377.4,3.0]
[1719730211229,0.863,3377.7,3377.4,3.0]
[1719730211458,0.863,3377.7,3377.0,2.4583]
[1719730211764,0.17758629,3377.6,3377.5,1.186304]
[1719730212284,0.863,3377.7,3377.5,1.186304]
[1719730212632,0.17758629,3377.6,3377.1,3.0]
[1719730212971,0.17758629,3377.6,3377.2,1.186349]
[1719730213133,0.863,3377.5,3377.2,1.186349]
[1719730214845,6.90686926,3378.3,3377.2,1.186349]
[1719730215099,0.863,3377.8,3377.2,1.186349]
[1719730215267,0.863,3377.8,3377.3,0.55]
[1719730215450,0.17750116,3377.7,3377.3,3.55]
[1719730215945,0.17750116,3377.6,3377.3,3.60921889]
[1719730216271,6.90686926,3378.3,3377.5,3.3213]
[1719730216604,6.90686926,3378.3,3377.6,3.55]
[1719730216605,0.17750116,3378.2,3377.6,3.55]
[1719730217506,0.17750116,3378.2,3377.7,0.863]
[1719730217790,0.17750116,3378.2,3377.8,0.55]
[1719730218155,6.90686926,3378.3,3377.8,0.55]
[1719730218369,0.17752243,3378.2,3377.8,0.55]
[1719730218666,6.90686926,3378.3,3377.8,0.55]
[1719730218882,0.17752243,3378.1,3377.7,0.55]
[1719730219048,6.90686926,3378.3,3377.7,1.25407649]
[1719730219249,0.17758981,3378.0,3377.7,1.25407649]
[1719730219490,6.90686926,3378.3,3377.8,0.75753765]
[1719730219799,6.90686926,3378.3,3377.9,0.55]
[1719730219954,7.76986926,3378.3,3377.9,0.55]
[1719730220288,7.76986926,3378.3,3377.7,0.55]
[1719730220497,12.21105619,3378.3,3377.6,3.0]
[1719730220701,12.21105619,3378.3,3377.3,3.0]
[1719730220702,0.863,3378.1,3377.3,3.0]
[1719730220993,0.863,3378.1,3377.4,0.55]
[1719730222996,9.34106926,3378.3,3377.4,0.55]
[1719730223199,0.863,3378.0,3377.4,0.55]